bitfinex-derivatives/quotes_ETHF0:USTF0_20251216
["timestamp","ask_amount","ask_price","bid_price","bid_amount"]
[1765877271568,1.9826,2928.5,2928.4,2.32239511]
[1765877271875,1.9826,2928.5,2928.4,3.04249511]
[1765877272073,1.2275,2928.5,2928.4,3.04249511]
[1765877272274,1.9826,2928.5,2928.4,3.04249511]
[1765877275974,1.5291,2928.3,2928.2,0.7825]
[1765877276379,1.5291,2928.3,2928.2,1.5026]
[1765877276679,1.9826,2928.5,2928.4,1.5026]
[1765877276868,0.4535,2928.5,2928.4,3.04249511]
[1765877277073,0.00343089,2928.6,2928.5,1.5026]
[1765877277268,0.00343089,2928.6,2928.5,1.9335]
[1765877278978,0.00343089,2928.6,2928.5,3.04136132]
[1765877280075,1.53253089,2928.6,2928.5,3.04136132]
[1765877280586,0.00343089,2928.6,2928.5,3.04136132]
[1765877282073,1.53253089,2928.6,2928.5,3.04136132]
[1765877282970,0.77743089,2928.6,2928.5,3.04136132]
[1765877288085,1.51693089,2928.6,2928.5,1.53876132]
[1765877288290,1.51693089,2928.6,2928.5,2.25866132]
[1765877288482,1.51693089,2928.6,2928.5,3.03956132]
[1765877290389,0.77743089,2928.6,2928.5,3.03956132]
[1765877291088,1.51693089,2928.6,2928.5,3.03956132]
[1765877297984,0.77743089,2928.6,2928.5,3.03956132]
[1765877298191,0.00343089,2928.6,2928.5,3.03956132]
[1765877298993,0.75053089,2928.6,2928.5,3.03956132]
[1765877299594,0.00343089,2928.6,2928.5,3.03956132]
[1765877299795,1.01351971,2928.6,2928.5,3.03956132]
[1765877299995,0.00343089,2928.6,2928.5,3.03956132]
[1765877300791,1.49003089,2928.6,2928.5,0.7199]
[1765877300993,2.50022598,2928.6,2928.5,1.5008]
[1765877301193,1.49003089,2928.6,2928.5,1.5008]
[1765877301598,0.00343089,2928.6,2928.5,1.5008]
[1765877307393,0.00343089,2928.6,2928.5,3.03983352]
[1765877307793,0.00343089,2928.6,2928.5,4.57886704]
[1765877309707,0.00343089,2928.6,2928.5,3.03983352]
[1765877310906,0.00343089,2928.6,2928.5,4.57886704]
[1765877319798,1.1142,2929.5,2929.4,1.5003]
[1765877319998,1.8461,2929.5,2929.4,1.53903352]
[1765877320203,1.5077,2929.3,2929.2,3.9729]
[1765877320400,1.5077,2929.3,2929.2,5.51193352]
[1765877320804,1.51127511,2929.3,2929.2,5.51441949]
[1765877321710,1.51127511,2929.3,2929.2,6.24961949]
[1765877322797,1.51127511,2929.3,2929.2,3.04181949]
[1765877325511,1.51127511,2929.3,2929.2,1.50278597]
[1765877325811,1.51127511,2929.3,2929.2,3.04181949]
[1765877328711,1.51127511,2929.3,2929.2,2.30661949]
[1765877329210,1.51127511,2929.3,2929.2,1.54151949]
[1765877329606,1.51127511,2929.3,2929.2,2.30661949]
[1765877329912,0.77937511,2929.3,2929.2,3.04181949]
[1765877330213,1.51127511,2929.3,2929.2,3.04181949]
[1765877331811,1.00528347,2929.3,2929.2,1.50278597]
[1765877332116,1.78108347,2929.3,2929.2,3.04181949]
[1765877332516,2.51298347,2929.3,2929.2,3.04181949]
[1765877333516,1.51127511,2929.3,2929.2,3.04181949]
[1765877339836,1.51127511,2929.3,2929.2,1.50278597]
[1765877340023,1.51127511,2929.3,2929.2,3.04181949]
[1765877340737,1.51127511,2929.3,2929.2,2.30661949]
[1765877340935,2.68370347,2929.3,2929.2,0.00248597]
[1765877348942,2.68370347,2929.3,2929.2,3.00907182]
[1765877349446,1.17600347,2929.3,2929.2,3.00907182]
[1765877349635,1.17600347,2929.3,2929.2,6.21687182]
[1765877349840,0.17429511,2929.3,2929.2,6.21687182]
[1765877350146,1.17600347,2929.3,2929.2,6.21687182]
[1765877350340,0.00357511,2929.3,2929.2,6.21687182]
[1765877360863,0.00357511,2929.3,2929.2,7.75585767]
[1765877361259,0.00357511,2929.3,2929.2,6.21687182]
[1765877369369,0.00357511,2929.3,2929.2,6.21605374]
[1765877372274,1.51907511,2929.3,2929.2,6.21605374]
[1765877372571,2.68310409,2929.3,2929.2,0.00248597]
[1765877373672,1.68979511,2929.3,2929.2,0.00248597]
[1765877374777,1.68979511,2929.3,2929.2,2.99505374]
[1765877375275,0.90579511,2929.3,2929.2,2.99505374]
[1765877375471,1.68979511,2929.3,2929.2,2.99505374]
[1765877375668,1.68979511,2929.3,2929.2,0.71198597]
[1765877375866,1.68979511,2929.3,2929.2,0.00248597]
[1765877378784,0.17429511,2929.3,2929.2,1.45688597]
[1765877379074,1.68339511,2929.3,2929.2,1.45688597]
[1765877379579,1.68339511,2929.3,2929.2,0.00248597]
[1765877379979,1.68339511,2929.3,2929.2,1.45688597]
[1765877385381,0.00357511,2929.3,2929.2,4.66468597]
[1765877385581,0.00512707,2929.5,2929.4,1.4544]
[1765877386683,0.00945146,2929.5,2929.4,1.4544]
[1765877390174,0.4535,2930.0,2929.9,1.4544]
[1765877390482,0.17066,2930.4,2930.3,1.4544]
[1765877390683,1.67976,2930.4,2930.3,2.99256777]
[1765877391280,1.68305225,2930.4,2930.3,2.99256777]
[1765877391883,1.5091,2930.3,2930.2,3.2078]
[1765877392188,1.5091,2930.3,2930.2,3.9173]
[1765877393691,1.5091,2930.3,2930.2,4.6622]
[1765877393883,0.7251,2930.3,2930.2,4.6622]
[1765877394886,1.5091,2930.3,2930.2,4.6622]
[1765877395081,1.964,2930.0,2929.9,0.7095]
[1765877395387,1.964,2930.0,2929.9,1.4544]
[1765877398289,1.964,2930.0,2929.9,0.7095]
[1765877399696,1.964,2930.0,2929.9,1.4544]
[1765877400393,1.964,2930.0,2929.9,0.7095]
[1765877401287,1.964,2930.0,2929.9,1.4544]
[1765877401482,1.18,2930.0,2929.9,1.4544]
[1765877401688,1.964,2930.0,2929.9,1.4544]
[1765877402895,1.4732,2929.7,2929.6,2.25376777]
[1765877403091,1.4732,2929.7,2929.6,3.02476777]
[1765877404094,1.64389,2929.9,2929.8,1.4866]
[1765877404392,0.92429,2929.9,2929.8,1.4866]
[1765877404890,0.17069,2929.9,2929.8,1.4866]
[1765877405095,1.64715225,2930.4,2930.3,0.7156]
[1765877405290,1.4732,2930.2,2930.1,3.02476777]
[1765877406001,1.4732,2930.2,2930.1,2.25376777]
[1765877407197,1.64387,2930.2,2930.1,2.25376777]
[1765877407404,1.4732,2929.9,2929.8,6.23256777]
[1765877407593,0.7536,2929.9,2929.8,6.23256777]
[1765877407897,1.8992,2930.0,2929.9,1.4866]
[1765877408095,1.1796,2930.0,2929.9,1.4866]
[1765877408292,0.426,2930.0,2929.9,1.4866]
[1765877409095,1.8992,2930.0,2929.9,1.4866]
[1765877411201,1.1796,2930.0,2929.9,1.4866]
[1765877411403,0.426,2930.0,2929.9,1.4866]
[1765877412104,0.17067,2930.2,2929.8,4.74596777]
[1765877412105,1.64387,2930.2,2930.1,1.4866]
[1765877412703,0.92427,2930.2,2930.1,1.4866]
[1765877413305,1.64387,2930.2,2930.1,1.4866]
[1765877413605,1.8992,2930.0,2929.9,1.53756642]
[1765877413797,2.89250898,2930.0,2929.9,3.02416642]
[1765877414104,2.17290898,2930.0,2929.9,3.02416642]
[1765877418106,2.17290898,2930.0,2929.9,6.23196642]
[1765877418516,2.89250898,2930.0,2929.9,6.23196642]
[1765877419814,2.17290898,2930.0,2929.9,6.23196642]
[1765877421219,2.89250898,2930.0,2929.9,6.23196642]
[1765877421420,2.17290898,2930.0,2929.9,6.23196642]
[1765877422119,1.41930898,2930.0,2929.9,6.23196642]
[1765877422418,0.99330898,2930.0,2929.9,6.23196642]
[1765877423821,1.74690898,2930.1,2930.0,1.4866]
[1765877426215,0.7536,2929.7,2929.6,4.74536642]
[1765877426411,1.4732,2929.7,2929.6,5.46096642]
[1765877426617,0.7536,2929.7,2929.6,4.6944]
[1765877428325,1.4732,2929.7,2929.6,3.9234]
[1765877429720,1.4732,2929.4,2929.3,3.2078]
[1765877430022,2.4715721,2929.4,2929.3,3.2078]
[1765877430221,1.4732,2929.3,2929.2,0.00248597]
[1765877430423,2.4715721,2929.3,2929.2,0.00248597]
[1765877432021,2.4715721,2929.3,2929.2,0.75918597]
[1765877432322,1.4732,2929.3,2929.2,0.75918597]
[1765877433322,1.4968,2929.3,2929.2,1.50028597]
[1765877433818,1.4968,2929.3,2929.2,0.75918597]
[1765877435322,1.4968,2929.3,2929.2,1.51588597]
[1765877435620,0.17078,2928.3,2927.5,2.76555285]
[1765877435815,3.2078,2928.0,2927.7,3.07325285]
[1765877436413,3.21215913,2928.0,2927.7,3.07732649]
[1765877437323,3.38295913,2928.0,2927.7,0.00407364]
[1765877438323,3.38295913,2928.0,2927.7,1.54292649]
[1765877438525,3.38295913,2928.0,2927.9,1.53885285]
[1765877438725,3.38295913,2928.0,2927.7,2.32062649]
[1765877439321,3.38295913,2928.0,2927.7,3.07732649]
[1765877439618,3.38295913,2928.0,2927.7,1.53847364]
[1765877439817,3.38295913,2928.0,2927.7,3.07732649]
[1765877440617,3.38295913,2928.0,2927.9,3.07325285]
[1765877441017,3.21215913,2928.0,2927.9,3.07325285]
[1765877442323,0.00435913,2928.0,2927.9,3.07325285]
[1765877445029,0.00512707,2928.1,2928.0,1.9834]
[1765877446027,0.17074,2929.0,2928.5,0.449]
[1765877446222,2.08814,2929.0,2928.9,1.53885285]
[1765877446422,2.13327481,2929.0,2928.9,1.53885285]
[1765877446622,0.17075,2928.9,2928.7,1.53885285]
[1765877446818,1.4835,2928.5,2928.4,3.2078]
[1765877447018,1.92175157,2928.5,2928.4,3.9855]
[1765877447629,1.96688638,2928.5,2928.4,3.9855]
[1765877449433,1.53298638,2928.5,2928.4,4.7422]
[1765877449634,0.78978638,2928.5,2928.4,4.7422]
[1765877449829,0.04948638,2928.5,2928.4,4.7422]
[1765877450027,0.78978638,2928.5,2928.4,4.7422]
[1765877450533,1.53298638,2928.5,2928.4,4.7422]
[1765877450832,0.78978638,2928.5,2928.4,4.7422]
[1765877452431,0.04948638,2928.5,2928.4,4.7422]
[1765877452628,0.04948638,2928.5,2928.4,6.28105285]
[1765877452831,0.04948638,2928.5,2928.4,4.7422]
[1765877455238,0.04948638,2928.5,2928.4,6.28105285]
[1765877458334,0.04948638,2928.5,2928.4,4.7422]
[1765877459435,0.04948638,2928.5,2928.4,6.28105285]
[1765877459734,0.00512707,2928.7,2928.6,1.5344]
[1765877459940,0.00512707,2928.7,2928.6,4.6121057]
[1765877460435,0.7403,2929.1,2929.0,1.9834]
[1765877460735,4.6913,2929.8,2929.7,0.7777]
[1765877460935,0.17069,2929.9,2929.8,1.5344]
[1765877461130,0.91099,2929.9,2929.8,1.5344]
[1765877461531,1.65419,2929.9,2929.8,1.5344]
[1765877461936,1.65805011,2929.9,2929.8,1.5371888]
[1765877463234,1.65805011,2929.9,2929.8,0.0027888]
[1765877466648,1.65805011,2929.9,2929.8,2.27264165]
[1765877467143,1.65805011,2929.9,2929.8,3.02654165]
[1765877468038,1.65805011,2929.9,2929.8,2.27264165]
[1765877468239,1.65805011,2929.9,2929.8,3.02654165]
[1765877470337,1.65805011,2929.9,2929.8,0.0027888]
[1765877470844,0.17455011,2929.9,2929.8,3.02654165]
[1765877471147,0.88155011,2929.9,2929.8,3.02654165]
[1765877472938,1.63065011,2929.9,2929.8,3.02654165]
[1765877473446,0.00512707,2930.1,2930.0,1.9114]
[1765877473638,0.00512707,2930.1,2930.0,6.65805285]
[1765877474341,0.00858755,2930.1,2930.0,6.65805285]
[1765877475845,1.46468755,2930.1,2930.0,3.2078]
[1765877476145,0.88626755,2930.1,2930.0,3.45025285]
[1765877476345,0.88626755,2930.1,2930.0,6.65805285]
[1765877476547,3.2078,2930.8,2930.7,0.7539]
[1765877476751,1.62668,2931.8,2931.7,1.4849]
[1765877476939,1.62668,2931.8,2931.7,0.731]
[1765877477244,1.62668,2931.8,2931.7,1.4849]
[1765877477449,0.87758,2931.8,2931.7,1.4849]
[1765877477646,0.17446204,2931.8,2931.7,1.4849]
[1765877478448,0.00511814,2932.0,2931.9,1.4849]
[1765877479541,0.00947923,2932.0,2931.9,1.48811355]
[1765877480250,0.71647923,2932.0,2931.9,1.48811355]
[1765877480551,0.00947923,2932.0,2931.9,1.48811355]
[1765877480749,0.71647923,2932.0,2931.9,1.48811355]
[1765877480951,1.46557923,2932.0,2931.9,1.48811355]
[1765877481353,0.71647923,2932.0,2931.9,1.48811355]
[1765877481756,1.46557923,2932.0,2931.9,1.48811355]
[1765877482452,0.71647923,2932.0,2931.9,1.48811355]
[1765877482654,1.46557923,2932.0,2931.9,1.48811355]
[1765877483252,1.63613923,2932.0,2931.9,1.48811355]
[1765877483647,2.07003923,2932.0,2931.9,0.00321355]
[1765877484453,1.62668,2931.8,2931.7,2.87479123]
[1765877485355,1.62669,2931.6,2931.5,0.00511814]
[1765877485560,1.4561,2931.1,2931.0,5.1192]
[1765877485856,1.4561,2931.1,2931.0,5.12221705]
[1765877486956,0.707,2931.1,2931.0,5.12221705]
[1765877487358,1.4561,2930.9,2930.8,0.00511814]
[1765877487559,1.4561,2930.9,2930.8,0.73611814]
[1765877487750,1.62673,2930.9,2930.8,0.73611814]
[1765877487952,1.62673,2930.9,2930.8,0.00511814]
[1765877488361,1.62673,2930.9,2930.8,0.00837793]
[1765877489058,1.62673,2930.9,2930.8,0.73937793]
[1765877489262,1.62673,2930.9,2930.8,0.00837793]
[1765877489467,0.17063,2930.9,2930.8,1.49327793]
[1765877489659,1.01205366,2931.4,2931.3,1.4849]
[1765877489865,3.3784,2931.5,2931.4,1.4849]
[1765877490361,5.09745366,2931.5,2931.4,1.4849]
[1765877490565,3.3784,2931.5,2931.4,1.4849]
[1765877490751,1.01205366,2931.7,2931.4,4.6927]
[1765877490957,2.46815366,2931.9,2931.8,1.4849]
[1765877493459,1.71905366,2931.9,2931.8,1.4849]
[1765877493665,1.01205366,2931.9,2931.8,1.4849]
[1765877494956,1.02963923,2932.0,2931.9,1.5961]
[1765877495155,2.04169289,2932.0,2931.9,1.5961]
[1765877499761,2.88839289,2932.0,2931.9,1.5961]
[1765877500869,3.20019289,2932.0,2931.5,0.4265]
[1765877501070,1.6963,2931.6,2931.5,2.0226]
[1765877501365,1.86165366,2931.6,2931.5,2.0226]
[1765877501663,1.01205366,2931.6,2931.5,2.0226]
[1765877504961,1.86165366,2931.6,2931.5,2.0226]
[1765877505354,1.01205366,2931.6,2931.5,2.0226]
[1765877507764,1.01205366,2931.6,2931.5,0.5066]
[1765877507968,2.70835366,2931.6,2931.5,2.1027]
[1765877510469,2.70835366,2931.6,2931.5,0.8238]
[1765877510670,2.1768,2931.5,2931.4,3.2078]
[1765877510970,2.70835366,2931.5,2931.4,4.8039]
[1765877511267,1.6963,2931.2,2931.1,4.0316]
[1765877511470,2.70835366,2931.2,2931.1,4.0316]
[1765877511664,2.70835366,2931.2,2931.1,4.8039]
[1765877511861,2.70835366,2931.2,2931.1,1.5961]
[1765877512261,1.01205366,2931.2,2931.1,1.5961]
[1765877513064,2.70835366,2931.2,2931.1,1.5961]
[1765877514366,1.86165366,2931.2,2931.1,1.5961]
[1765877514567,1.01205366,2931.2,2931.1,4.8039]
[1765877515266,1.01205366,2931.4,2931.3,1.5961]
[1765877516165,2.70835366,2931.7,2931.6,1.5961]
[1765877516675,0.8496,2931.2,2931.1,4.8039]
[1765877516868,1.6963,2931.2,2931.1,0.8238]
[1765877520373,1.6963,2931.2,2931.1,1.5961]
[1765877523080,0.8496,2931.2,2931.1,1.5961]
[1765877523376,0.91051,2931.3,2931.2,1.517]
[1765877524175,1.4582,2931.6,2931.5,1.9774]
[1765877524375,5.67805366,2931.8,2931.7,1.517]
[1765877524580,4.666,2931.8,2931.7,1.517]
[1765877524880,1.4582,2931.6,2931.5,1.2398]
[1765877525081,1.4582,2931.6,2931.5,1.9774]
[1765877525472,1.4582,2931.6,2931.5,5.1852]
[1765877525676,0.19877923,2932.0,2931.9,1.517]
[1765877525677,0.00947923,2932.0,2931.9,1.517]
[1765877525981,0.74937923,2932.0,2931.9,1.517]
[1765877526872,1.46767923,2932.0,2931.9,1.517]
[1765877527076,1.65697923,2932.0,2931.9,0.7794]
[1765877527678,1.46767923,2932.0,2931.9,1.517]
[1765877529279,0.00947923,2932.0,2931.9,1.517]
[1765877529489,0.74937923,2932.0,2931.9,1.517]
[1765877529789,0.74937923,2932.0,2931.5,3.6682]
[1765877529790,0.7399,2931.6,2931.5,5.1852]
[1765877529985,0.19877923,2932.0,2931.5,5.1852]
[1765877530290,1.46767923,2932.0,2931.9,1.517]
[1765877531381,0.74937923,2932.0,2931.9,1.517]
[1765877532390,0.00947923,2932.0,2931.9,1.517]
[1765877533188,0.00947923,2932.0,2931.9,4.7248]
[1765877538083,1.46767923,2932.0,2931.9,4.7248]
[1765877539492,0.00947923,2932.0,2931.9,4.7248]
[1765877541294,0.74937923,2932.0,2931.9,4.7248]
[1765877542493,1.46767923,2932.0,2931.9,4.7248]
[1765877543797,0.74937923,2932.0,2931.9,4.7248]
[1765877544001,0.00947923,2932.0,2931.9,4.7248]
[1765877547197,1.75195366,2932.7,2932.6,1.517]
[1765877547389,3.2078,2933.1,2933.0,1.9774]
[1765877547590,3.2078,2933.5,2933.4,1.517]
[1765877547798,4.96036494,2933.8,2933.7,1.517]
[1765877548095,1.4582,2933.8,2933.7,1.517]
[1765877548296,1.18311494,2934.0,2933.7,1.517]
[1765877548297,1.63376814,2934.0,2933.9,1.517]
[1765877548497,1.63754772,2934.0,2933.9,1.517]
[1765877552908,1.4447,2933.8,2933.7,1.48367588]
[1765877553400,1.4447,2933.8,2933.7,0.73747588]
[1765877553801,0.17045,2933.9,2933.8,1.481]
[1765877554001,1.4447,2933.8,2933.7,0.00267588]
[1765877554207,1.4447,2933.8,2933.7,0.73747588]
[1765877554408,1.4447,2933.8,2933.7,1.48367588]
[1765877554606,0.7292,2933.8,2933.7,1.48367588]
[1765877555211,1.4447,2933.8,2933.7,0.00267588]
[1765877556012,1.61516,2933.8,2933.7,0.00267588]
[1765877559313,1.61516,2933.8,2933.5,0.00511814]
[1765877559314,1.61517,2933.6,2933.5,0.00511814]
[1765877560412,1.61517,2933.6,2933.5,0.0075352]
[1765877561109,1.61517,2933.6,2933.5,1.4885352]
[1765877561312,1.61517,2933.6,2933.5,0.7423352]
[1765877561714,1.61517,2933.6,2933.5,0.0075352]
[1765877562112,1.61517,2933.6,2933.5,0.7423352]
[1765877562709,1.61517,2933.6,2933.5,0.0075352]
[1765877563318,1.61517,2933.6,2933.5,0.7423352]
[1765877566823,0.89967,2933.6,2933.5,1.9450352]
[1765877567230,0.17047,2933.6,2933.5,1.9450352]
[1765877567423,1.61517,2933.6,2933.5,0.7423352]
[1765877567822,1.61517,2933.6,2933.5,1.4885352]
[1765877568230,1.61517,2933.6,2933.5,1.9450352]
[1765877568731,0.17047,2933.6,2933.5,1.9450352]
[1765877569329,0.89967,2933.6,2933.5,1.9450352]
[1765877570032,0.17047,2933.6,2933.5,1.9450352]
[1765877571535,1.45359772,2934.0,2933.9,1.481]
[1765877572229,0.73809772,2934.0,2933.9,1.481]
[1765877572830,1.45359772,2934.0,2933.9,1.481]
[1765877575330,0.73809772,2934.0,2933.9,3.01461321]
[1765877575933,4.20770943,2934.6,2934.5,1.9375]
[1765877576141,0.89961,2934.7,2934.6,1.481]
[1765877576334,0.17041,2934.7,2934.6,1.481]
[1765877576535,3.2078,2934.9,2934.8,1.481]
[1765877576745,3.2078,2934.9,2934.8,3.01461321]
[1765877576934,3.937,2934.9,2934.8,3.01461321]
[1765877577129,3.94006195,2934.9,2934.8,3.01461321]
[1765877577335,1.44776195,2934.9,2934.8,1.481]
[1765877577634,2.44767138,2934.9,2934.8,1.481]
[1765877577836,1.44776195,2934.9,2934.8,1.481]
[1765877578035,2.44767138,2934.9,2934.8,1.481]
[1765877578236,1.44776195,2934.9,2934.8,1.481]
[1765877578540,1.61816195,2934.9,2934.8,1.481]
[1765877578741,0.17346195,2934.9,2934.8,1.481]
[1765877579443,1.61816195,2934.9,2934.5,3.6643]
[1765877579642,1.4447,2934.6,2934.5,0.7348]
[1765877579845,1.4447,2934.3,2934.2,4.6888]
[1765877580844,0.7292,2934.3,2934.2,4.6888]
[1765877581147,0.89963,2934.4,2934.3,1.481]
[1765877581542,0.17043,2934.4,2934.3,1.481]
[1765877586651,0.89963,2934.4,2934.3,1.481]
[1765877586954,0.17043,2934.4,2934.3,1.481]
[1765877589553,3.21086195,2934.9,2934.3,1.481]
[1765877589752,4.88116195,2934.9,2934.8,1.4672]
[1765877589942,0.94896195,2934.9,2934.8,1.4672]
[1765877590145,0.17346195,2934.9,2934.8,1.4672]
[1765877590543,0.00306195,2934.9,2934.8,1.4672]
[1765877591347,4.98320943,2935.8,2935.7,1.4672]
[1765877591553,0.94583,2936.0,2935.9,1.4672]
[1765877591749,0.17033,2936.0,2935.9,1.4672]
[1765877591946,1.4999,2936.1,2936.0,1.9272]
[1765877592154,4.21163444,2936.4,2935.0,0.46]
[1765877592155,0.7755,2935.3,2935.2,4.675]
[1765877592353,0.94585,2935.7,2935.6,1.4672]
[1765877592555,0.17321423,2935.7,2935.6,1.4672]
[1765877592753,0.00286423,2935.7,2935.6,4.675]
[1765877593152,1.50276423,2935.7,2935.6,1.4672]
[1765877593748,2.50659867,2935.7,2935.6,1.4672]
[1765877594362,2.67694867,2935.7,2935.6,0.7443]
[1765877594564,0.7244,2935.3,2935.2,0.00353566]
[1765877594861,2.50373444,2935.3,2935.2,0.00353566]
[1765877595251,1.67028,2935.1,2935.0,0.00510925]
[1765877595456,7.70880442,2935.1,2935.0,0.00510925]
[1765877595758,1.00383444,2935.1,2935.0,7.43931336]
[1765877596056,1.00383444,2935.1,2935.0,1.93230925]
[1765877596257,2.50373444,2935.1,2935.0,1.93633632]
[1765877596458,1.77933444,2935.1,2935.0,1.93633632]
[1765877596760,1.00383444,2935.1,2935.0,1.93633632]
[1765877597760,2.50373444,2935.1,2935.0,0.75343632]
[1765877598458,2.50373444,2935.1,2935.0,1.47633632]
[1765877598858,2.50373444,2935.1,2935.0,0.75343632]
[1765877599156,2.50373444,2935.1,2935.0,1.47633632]
[1765877600863,2.67411444,2935.1,2935.0,0.00913632]
[1765877601166,2.67411444,2935.1,2935.0,0.75343632]
[1765877601359,2.67411444,2935.1,2935.0,0.00913632]
[1765877601559,4.50100442,2935.1,2935.0,0.00913632]
[1765877603168,4.86218565,2935.1,2935.0,0.00913632]
[1765877603367,4.50100442,2935.1,2935.0,0.00913632]
[1765877603763,1.67028,2935.1,2935.0,0.00913632]
[1765877604163,0.94588,2935.1,2935.0,1.93633632]
[1765877604368,1.67028,2935.1,2935.0,1.93633632]
[1765877604669,1.67028,2935.1,2935.0,0.75343632]
[1765877605563,1.4999,2934.2,2933.5,0.46]
[1765877605771,1.67033,2934.4,2934.3,1.4672]
[1765877605968,1.4999,2934.7,2934.6,1.4672]
[1765877606362,0.7755,2934.7,2934.6,1.4672]
[1765877606566,1.4999,2934.7,2934.6,1.46991663]
[1765877606766,1.67031,2934.7,2934.6,0.00271663]
[1765877606968,1.67031,2934.7,2932.7,0.17052]
[1765877606969,0.17044,2934.2,2933.4,3.2078]
[1765877607161,0.17044,2934.2,2934.1,1.4672]
[1765877607367,3.9833,2934.7,2934.6,1.4672]
[1765877607569,4.7077,2934.7,2934.6,1.4672]
[1765877607968,4.7077,2934.7,2934.6,1.46977644]
[1765877608173,4.87811,2934.7,2934.6,0.00257644]
[1765877608377,4.15371,2934.7,2934.6,1.46977644]
[1765877608673,4.87811,2934.7,2934.6,1.46977644]
[1765877608864,4.87811,2934.7,2934.6,0.74687644]
[1765877609462,4.87811,2934.7,2934.6,0.00257644]
[1765877610465,2.09702,2934.5,2934.4,9.25e-06]
[1765877610677,3.10085444,2934.5,2934.4,9.25e-06]
[1765877611474,0.4365,2934.0,2933.5,0.46]
[1765877611674,0.7585,2933.6,2933.5,1.8865]
[1765877612573,0.76290343,2933.6,2933.5,1.89089203]
[1765877612868,0.00440343,2933.6,2933.5,1.89089203]
[1765877613875,0.77110343,2933.6,2933.5,1.89089203]
[1765877614076,4.75770343,2933.6,2933.5,0.00439203]
[1765877614678,1.71598,2933.4,2933.3,0.00510925]
[1765877615181,1.5455,2933.0,2932.9,1.4339]
[1765877615481,0.7667,2933.0,2932.9,1.4339]
[1765877615682,4.7533,2933.2,2933.1,0.7118]
[1765877616783,1.5455,2933.0,2932.9,1.44148035]
[1765877616983,0.7667,2933.0,2932.9,1.44148035]
[1765877618084,1.5455,2933.0,2932.9,1.44148035]
[1765877618272,0.4416,2933.5,2933.4,0.7221]
[1765877618273,3.2078,2933.5,2933.4,0.7221]
[1765877618479,0.00951268,2933.6,2933.5,1.8773]
[1765877618977,0.17043,2934.4,2934.0,0.4434]
[1765877619172,4.90493846,2934.5,2933.5,0.4434]
[1765877619173,4.7533,2934.1,2933.5,0.4434]
[1765877619378,1.5455,2934.1,2933.5,0.4434]
[1765877619585,1.5455,2933.6,2933.5,1.8773]
[1765877619779,1.5455,2933.6,2933.5,0.7118]
[1765877619986,1.54936452,2933.6,2933.5,1.4339]
[1765877620679,1.5455,2933.3,2933.2,0.7118]
[1765877620883,1.5455,2933.3,2933.2,1.4339]
[1765877621188,3.9745,2933.4,2933.3,1.4339]
[1765877622088,1.54936452,2933.6,2933.5,0.7118]
[1765877622287,0.77056452,2933.6,2933.5,1.8773]
[1765877622891,1.54936452,2933.6,2933.5,1.8773]
[1765877623078,1.54936452,2933.6,2933.5,1.4339]
[1765877623278,1.54936452,2933.6,2933.5,0.7118]
[1765877623477,0.7667,2933.1,2933.0,1.8773]
[1765877623682,1.5455,2933.1,2933.0,1.4339]
[1765877624682,0.7667,2933.1,2933.0,1.8773]
[1765877625791,1.5455,2933.1,2933.0,0.7118]
[1765877625994,1.5455,2933.0,2932.9,0.00758035]
[1765877626186,1.716,2933.2,2933.1,0.7118]
[1765877626491,0.1705,2933.2,2933.1,1.4339]
[1765877626691,0.9372,2933.2,2933.1,1.4339]
[1765877627392,0.1705,2933.2,2933.1,1.4339]
[1765877627784,0.9372,2933.2,2933.1,1.4339]
[1765877628289,1.716,2933.2,2933.1,1.4339]
[1765877628492,0.1705,2933.2,2933.1,1.4339]
[1765877628691,0.9372,2933.2,2933.1,1.4339]
[1765877631495,1.716,2933.2,2933.1,1.4339]
[1765877634392,0.9372,2933.2,2933.1,1.4339]
[1765877635393,1.716,2933.2,2933.1,1.4339]
[1765877637192,1.5455,2933.0,2932.9,1.44148035]
[1765877637392,5.1949,2933.0,2932.9,0.00758035]
[1765877637786,5.1949,2933.0,2932.9,0.71938035]
[1765877638395,6.19805625,2933.0,2932.9,0.71938035]
[1765877638591,2.15761,2933.0,2932.9,1.44148035]
[1765877638786,5.36541,2933.0,2932.9,0.00758035]
[1765877638987,6.36856625,2933.0,2932.9,0.00758035]
[1765877639798,6.36856625,2933.0,2932.9,0.71938035]
[1765877640497,3.16076625,2933.0,2932.9,0.00758035]
[1765877640699,6.36856625,2933.0,2932.9,0.00758035]
[1765877641699,5.92696625,2933.0,2932.9,1.44148035]
[1765877642302,6.16496625,2933.0,2932.9,0.00758035]
[1765877642498,6.16496625,2933.0,2931.3,3.03102314]
[1765877642499,1.4653,2932.1,2932.0,1.9795]
[1765877642899,2.46845625,2932.1,2932.0,1.9795]
[1765877643094,2.46845625,2932.1,2932.0,1.5361]
[1765877643296,1.9005,2932.0,2931.9,0.7654]
[1765877643504,6.11145625,2932.0,2931.9,0.76852813]
[1765877644202,6.11145625,2932.0,2931.9,0.00312813]
[1765877648804,6.28201625,2932.0,2931.9,0.00312813]
[1765877649011,6.28201625,2932.0,2931.7,0.00510925]
[1765877649012,1.63588,2931.8,2931.7,0.00510925]
[1765877649303,4.46744224,2931.8,2931.7,0.00510925]
[1765877649702,2.63903625,2931.8,2931.7,0.00510925]
[1765877649909,4.46744224,2931.8,2931.7,0.00510925]
[1765877650099,4.46744224,2931.8,2931.7,0.00951036]
[1765877651915,1.17373625,2931.8,2931.7,3.08075927]
[1765877652114,2.63903625,2931.8,2931.7,0.00951036]
[1765877652519,4.46744224,2931.8,2931.7,0.00951036]
[1765877652705,1.4653,2931.1,2931.0,1.5361]
[1765877652910,2.63907625,2931.1,2931.0,0.7654]
[1765877653110,2.63907625,2931.1,2930.5,0.4301]
[1765877653310,2.46845625,2931.0,2930.9,0.7654]
[1765877653519,4.92695625,2931.0,2930.9,1.5361]
[1765877653817,4.93018214,2931.0,2930.9,1.53905122]
[1765877654115,4.67632589,2931.0,2930.9,1.53905122]
[1765877654306,3.92702589,2931.0,2930.9,1.53905122]
[1765877655414,4.67632589,2931.0,2930.9,1.53905122]
[1765877655815,3.92702589,2931.0,2930.9,1.53905122]
[1765877656415,3.21102589,2931.0,2930.9,1.53905122]
[1765877656607,3.92702589,2931.0,2930.9,1.53905122]